Cogmind - Beta 15 X1 @@@ ROGUE MODE // 2024.11.09 @ 19:30:39 Player: Some Pennies Result: Destroyed by F0-2ZU(R) with Subdweller Machine Gun Performance ------------- Evolutions (0) 0 Regions Visited (2) 400 Robots Destroyed (29) 145 Value Destroyed (683) 683 Prototype IDs (4) 80 Alien Tech Used (0) 0 Bonus (0) 0 TOTAL SCORE: 1308 Bonus ------- None Cogmind --------- Core Integrity 0/250 Matter 130/300 Energy 100/100 System Corruption 0% Temperature Cool (0) Movement Treading (480) Ox4 Location -10/Subcaves Parts ------- > --- POWER (1) -------- (None) > --- PROPULSION (2) --- Light Treads > --- UTILITY (2) ------ Huge Storage Unit Makeshift Light Armor Plating > --- WEAPON (2) ------- EM Shotgun EM Shotgun > --- INVENTORY (25) --- Light Treads Light Treads Light Treads High-capacity Storage Unit Machine Analyzer Signal Interpreter Improved Terrain Scanner Transport Network Coupler Cobbler Unit EM Shotgun Subdweller Laser Subdweller Laser Beam Cannon Assault Rifle Assault Rifle Mini Grenade Launcher Mini Grenade Launcher Mini Grenade Launcher Mining Laser Multitool Peak State ------------ > --- POWER ------------ Subdweller Power Source > --- PROPULSION ------- Light Treads Light Treads > --- UTILITY ---------- Huge Storage Unit Improved Terrain Scanner > --- WEAPON ----------- EM Shotgun EM Shotgun > --- INVENTORY -------- Ion Engine Light Treads Light Treads Light Treads Aluminum Leg Aluminum Leg High-capacity Storage Unit Machine Analyzer Signal Interpreter Transport Network Coupler Makeshift Light Armor Plating EM Shotgun EM Shotgun EM Shotgun Subdweller Laser Subdweller Laser Beam Cannon Assault Rifle Assault Rifle Mini Grenade Launcher Mini Grenade Launcher Mini Grenade Launcher Mini Grenade Launcher Mining Laser Multitool [Rating: 16] Favorites ----------- Power Ion Engine Engine Ion Engine Propulsion Light Treads Treads Light Treads Utility Huge Storage Unit Device Seismic Detector Storage Huge Storage Unit Protection Makeshift Light Armor Plating Weapon EM Shotgun Energy Gun EM Shotgun Ballistic Gun Assault Rifle Launcher Mini Grenade Launcher Special Weapon Mining Laser Build | -11 -10 -10 ------- Run | Yrd Mat Sub Slots Evolved . | . . . Power . | . . . Propulsion . | . . . Utility . | . . . Weapon . | . . . Parts Attached 26 | 8 8 10 Power 3 | 1 . 2 Engine 3 | 1 . 2 Core . | . . . Reactor . | . . . Propulsion 3 | 2 . 1 Treads 3 | 2 . 1 Leg . | . . . Wheel . | . . . Hover . | . . . Flight . | . . . Utility 8 | 3 4 1 Device 3 | 2 1 . Storage 4 | 1 3 . Processor . | . . . Hackware . | . . . Protection 1 | . . 1 Artifact . | . . . Weapon 12 | 2 4 6 Energy Gun 7 | . 4 3 Energy Cannon . | . . . Ballistic Gun 2 | 2 . . Ballistic Cannon . | . . . Launcher 2 | . . 2 Special Weapon 1 | . . 1 Impact Weapon . | . . . Slashing Weapon . | . . . Piercing Weapon . | . . . Special Melee Weapon . | . . . Unidentified Prototypes . | . . . Parts Lost 8 | . . 8 Power 1 | . . 1 Propulsion 2 | . . 2 Utility 2 | . . 2 Weapon 3 | . . 3 Highest Loss Streak 5 | . . 5 To Critical Strikes . | . . . Average Backups 21 | 4 20 24 Power . | . 1 . Propulsion 3 | 1 3 4 Utility 4 | . 5 5 Weapon 11 | 1 11 12 Tool/Special . | . . . Unused Backups 24 | 2 4 18 Power . | . . . Propulsion 6 | . 1 5 Utility 7 | 1 1 5 Weapon 10 | 1 2 7 Tool/Special 1 | . . 1 Average Slot Usage (%) 98 | . 100 97 Engine 12 | . 14 12 Treads 28 | . 28 28 Device 12 | . 14 12 Storage 14 | . 14 14 Protection 1 | . . 1 Energy Gun 22 | . 17 26 Ballistic Gun 3 | . 10 . Peak Build Rating 16 | 9 12 16 Average Rating 12 | 7 10 13 On Entrance 6 | . 8 12 Naked Turns . | . . . Heaviest Build 92 | 15 92 92 Greatest Support 40 | 40 40 40 Greatest Overweight (x) 2 | 1 2 2 Average Overweight (x) 1 | . 1 2 Largest Inventory Capacity 25 | 8 25 25 Average Capacity 23 | 7 23 25 Most Carried 25 | 8 25 25 Average Carried 21 | 4 21 24 Final Capacity 25 | 8 25 25 Final Carried 25 | 7 25 21 Class Distribution -------------------- 100% | Mutant Dominant Class ---------------- Mutant | -10/Materials Mutant | -10/Subcaves Resources | -11 -10 -10 ----------- Run | Yrd Mat Sub Matter Collected 873 | 412 259 202 Remotely . | . . . Salvage Created 1020 | 213 506 301 Parts 68 | 24 26 18 Haulers Intercepted 2 | . 2 . Recyclers Shooed . | . . . Parts Field Recycled . | . . . Retrieved Matter . | . . . Parts Self-Destructed 5 | . . 5 Prevented 1 | . . 1 Kills | -11 -10 -10 ------- Run | Yrd Mat Sub Combat Hostiles Destroyed 15 | . 7 8 Guns 11 | . 6 5 AOE 3 | . . 3 Classes Destroyed 9 | 3 3 3 Worker 3 | 2 1 . Tunneler 6 | 6 . . Hauler 2 | . 2 . Recycler 1 | 1 . . Watcher 2 | . 2 . Grunt 8 | . 7 1 Sentry 1 | . . 1 Artisan 1 | . . 1 Subdweller 6 | . . 6 Best Kill Streak 5 | 5 3 3 Combat Bots Only 3 | . 2 3 Max Kills in Single Turn 1 | 1 1 1 Gunslinging . | . . . Exploded 1 | . . 1 Melee . | . . . Uniques/NPCs Destroyed . | . . . Combat | -11 -10 -10 -------- Run | Yrd Mat Sub Hostile Shots Fired 68 | . 30 38 Missed 17 | . 9 8 Damage Taken 1157 | . 273 884 Core 255 | . 10 245 Absorbed by Shields . | . . . Core Remaining (%) 100 | 100 . . Volleys Fired 101 | 22 37 42 Largest 2 | 2 2 2 Hottest 100 | 40 90 100 Shots Fired 173 | 44 74 55 Gun 144 | 44 74 26 Cannon . | . . . Launcher 15 | . . 15 Special 14 | . . 14 Kinetic 96 | 44 52 . Thermal 14 | . . 14 Explosive 15 | . . 15 Electromagnetic 48 | . 22 26 Robot Hit Streak 25 | 5 10 25 Robot Miss Streak 4 | 3 4 3 Penetration Max . | . . . Secondary Targets 1 | . 1 . Max Gunslinging Chain 1 | . 1 . Shots Hit Robots 103 | 20 56 27 Core Hits 58 | 10 25 23 Critical Kills 1 | . 1 . Critical Parts Destroyed . | . . . Critical Strikes 1 | . 1 . Destroy 1 | . 1 . Melee Attacks . | . . . Impact . | . . . Slashing . | . . . Piercing . | . . . Sneak Attacks . | . . . Combat Hostiles . | . . . Follow-up Attacks . | . . . Damage Inflicted 1955 | 244 773 938 Guns 1335 | 244 773 318 Cannons . | . . . Explosions 620 | . . 620 Melee . | . . . Ramming . | . . . Kinetic 743 | 244 499 . Thermal . | . . . Explosive 620 | . . 620 Electromagnetic 592 | . 274 318 Impact . | . . . Slashing . | . . . Piercing . | . . . Highest Corruption . | . . . Average Corruption . | . . . Corruption Purged . | . . . Corruption Blocked . | . . . Overload Shots . | . . . Overflow Damage . | . . . Projectiles . | . . . Explosions . | . . . Melee . | . . . Knockbacks . | . . . Impact . | . . . Kinetic . | . . . Secondary . | . . . Self-Inflicted Damage . | . . . Shots . | . . . Rammed . | . . . Targets Rammed . | . . . Kicked . | . . . Crushed . | . . . Highest Temperature 108 | . 108 . Average Temperature 35 | . 35 . Received Heat Transfer 225 | . 156 69 Siege Activations . | . . . Martial Activations . | . . . Shielding Activations . | . . . Robots Disrupted . | . . . Combat Hostiles . | . . . Robots Corrupted 1 | . 1 . Combat Hostiles 1 | . 1 . Parts Fried 6 | . 2 4 Impact Corruptions . | . . . Robots Melted . | . . . Combat Hostiles . | . . . Parts Melted . | . . . Heat Transferred . | . . . Parts Sabotaged . | . . . Parts Stolen . | . . . Parts Stripped . | . . . Power Chain Reactions . | . . . Alert | -11 -10 -10 ------- Run | Yrd Mat Sub Maximum Alert Level . | . . . Low Security (%) 100 | 100 100 . Level 1 . | . . . Level 2 . | . . . Level 3 . | . . . Level 4 . | . . . Level 5 . | . . . High Security . | . . . Max Security . | . . . Peak Influence 68 | 15 68 . Initial . | . . . Average 14 | 1 16 . Influence Increases 371 | 45 286 40 Destroy 0b10 Robot/C 180 | . 140 40 Destroy 0b10 Robot/NC 70 | 45 25 . Destroy Leader 48 | . 48 . Successful Hack 28 | . 28 . Select Force Hacks 30 | . 30 . Lose Combat Pursuer 15 | . 15 . Influence Decreases 361 | 45 267 49 Time Decay 353 | 45 267 41 Lost Part 8 | . . 8 Squads Dispatched 1 | . 1 . Investigation 1 | . 1 . Extermination . | . . . Reinforcement . | . . . Assault . | . . . Garrison . | . . . Intercept . | . . . Searches Triggered . | . . . Construction Impeded . | . . . Haulers Reinforced . | . . . Active Scanning Responses . | . . . Cargo Convoy Interrupts . | . . . Stealth | -11 -10 -10 --------- Run | Yrd Mat Sub Distress Signals 1 | . 1 . Communications Jammed . | . . . Distress Signals . | . . . Times Spotted 20 | . 10 10 Peak Tracking Total 3 | . 3 3 Tactical Retreats 1 | . 1 . Traps | -11 -10 -10 ------- Run | Yrd Mat Sub Traps Triggered 2 | . . 2 Indirectly . | . . . Trap Hack Attempts . | . . . Triggered . | . . . Disarmed . | . . . Reprogrammed . | . . . Reused . | . . . Traps Extracted . | . . . Installed . | . . . Triggered . | . . . Machines | -11 -10 -10 ---------- Run | Yrd Mat Sub Machines Disabled . | . . . Max in Single Turn . | . . . Machines Repaired . | . . . Machines Dismantled . | . . . Machines Sabotaged . | . . . Overloaded Fab Kills . | . . . Hacking | -11 -10 -10 --------- Run | Yrd Mat Sub Machines Accessed 7 | . 6 1 Terminals 5 | . 5 . Fabricators . | . . . Repair Stations . | . . . Recycling Units 1 | . 1 . Scanalyzers . | . . . Garrison Access . | . . . Total Hacks 33 | . 28 5 Successful 20 | . 15 5 Failed 12 | . 12 . Catastrophic 1 | . 1 . Database Lockouts 1 | . 1 . Manual 20 | . 20 . Terminals 25 | . 25 . Fabricators . | . . . Repair Stations . | . . . Recycling Units 3 | . 3 . Scanalyzers . | . . . Garrison Access . | . . . Terminal Hacks 12 | . 7 5 Record 5 | . . 5 Robot Analysis 1 | . 1 . Prototype ID Bank 2 | . 2 . Terminal Index 1 | . 1 . Locate Traps 2 | . 2 . Zone Layout 1 | . 1 . Fabricator Hacks . | . . . Repair Station Hacks . | . . . Recycling Unit Hacks . | . . . Scanalyzer . | . . . Garrison Access Hacks . | . . . Unauthorized Hacks 8 | . 8 . Terminals 7 | . 7 . Botnet 1 | . 1 . Operators 1 | . 1 . Skim 5 | . 5 . Fabricators . | . . . Repair Stations . | . . . Recycling Units 1 | . 1 . Tunnel 1 | . 1 . Scanalyzers . | . . . Garrison Access . | . . . Data Cores Recovered . | . . . Used . | . . . Hacking Detections 6 | . 6 . Full Trace Events . | . . . Feedback Events . | . . . Feedback Blocked . | . . . Robot Schematics Acquired . | . . . Robots Built . | . . . Authchips . | . . . Time . | . . . Total Robot Build Rating . | . . . Part Schematics Acquired . | . . . Parts Built . | . . . Authchips . | . . . Time . | . . . Total Part Build Rating . | . . . Parts Repaired . | . . . Time . | . . . Parts Recycled . | . . . Recycled Matter . | . . . Retrieved Matter . | . . . Retrieved Components . | . . . Parts Scanalyzed . | . . . Part Schematics Acquired . | . . . Parts Damaged . | . . . Bothacking | -11 -10 -10 ------------ Run | Yrd Mat Sub Used RIF Installer . | . . . Robots Hacked . | . . . Non-combat . | . . . Combat . | . . . Robot Hacks Applied . | . . . Relay Couplers Released . | . . . Fabnet Peak Effective % . | . . . Robots Rewired . | . . . Allies Hacked . | . . . Hacks Repelled . | . . . Allies | -11 -10 -10 -------- Run | Yrd Mat Sub Total Allies . | . . . Largest Group . | . . . Highest-Rated Group . | . . . Highest-Rated Ally . | . . . Total Orders . | . . . Ally Attacks . | . . . Total Damage . | . . . Kills . | . . . Allies Corrupted . | . . . Allies Melted . | . . . Intel | -11 -10 -10 ------- Run | Yrd Mat Sub Active Infowar (turns) 3853 | 233 1346 2274 Terrain 1898 | 178 . 1720 Seismic 1955 | 55 1346 554 Robot Analysis Total 1 | . 1 . Derelict Logs Recovered 1 | . . 1 Drone Launches . | . . . Drone Recoveries . | . . . Exploration | -11 -10 -10 ------------- Run | Yrd Mat Sub Turns Passed 4686 | 327 1673 2686 Spaces Moved 1340 | 156 515 669 Core 13 | 13 . . Treads 1327 | 143 515 669 Legs . | . . . Wheels . | . . . Hover . | . . . Flight . | . . . Fastest Speed 50 | 50 160 320 Average Speed 289 | 152 290 320 Slowest Speed 320 | 160 320 320 Overloaded Moves . | . . . Propulsion Burnouts . | . . . Robots Hopped . | . . . Cave-ins Triggered . | . . . Exploration Rate (%) 39 | 9 70 40 Regions Visited 2 Branch Regions 1 Pre-discovered Areas 5 | . 3 2 Known Exits Taken 1 | . 1 . Unknown Exits Taken 1 | 1 . . Scrap Searched 2 | . . 2 Spaces Dug 13 | . . 13 Terrain Destroyed 55 | . . 55 Melee . | . . . Projectile . | . . . AOE 55 | . . 55 Terrain Rammed . | . . . Walls Destroyed . | . . . Machines Disabled . | . . . Actions | -11 -10 -10 --------- Run | Yrd Mat Sub Total 1944 | 200 616 1128 Wait 393 | . 10 383 Move 1338 | 155 514 669 Hop . | . . . Pick Up 46 | 11 27 8 Fast Attach 8 | 7 . 1 Attach 6 | . . 6 Detach . | . . . Swap 29 | 1 17 11 Drop 23 | 4 11 8 Fire 101 | 22 37 42 Melee . | . . . Ram . | . . . Kick . | . . . Crush . | . . . Escape Stasis . | . . . Rewire . | . . . Trap . | . . . Miscellaneous . | . . . Route ------- -11/Scrapyard -10/Materials (discovered 5 exits: *Mat x3 / Min / *Sub) -10/Subcaves (discovered 3 exits: *Mat x2 / Rec) History --------- Turn | Location | Event 9 | -11/Scrapyard | Discovered new exit (range 15) 328 | -11/Scrapyard | Entered Materials 329 | -10/Materials | Build established: Mutant 454 | -10/Materials | Central database locked down 562 | -10/Materials | Discovered new exit (range 15) 1130 | -10/Materials | Discovered new exit (range 9) 1576 | -10/Materials | Discovered new exit (range 8) 1856 | -10/Materials | Identified exit to Subcaves 1877 | -10/Materials | Identified exit to Materials 1877 | -10/Materials | Identified exit to Mines 1890 | -10/Materials | Learned location of Storage (-9) 1893 | -10/Materials | Learned location of 2 exits from Subcaves 1894 | -10/Materials | Learned location of 2 exits from Mines 1895 | -10/Materials | Learned location of Subcaves (-10) 1901 | -10/Materials | Learned 2 Materials zone layouts 1916 | -10/Materials | Learned 8 Materials zone layouts 1941 | -10/Materials | Learned Storage trap positions 2001 | -10/Materials | Entered Subcaves 2002 | -10/Subcaves | Approached by a straggling Scientist 2002 | -10/Subcaves | Identified exit to Materials 2159 | -10/Subcaves | Shifting Twisted Machinery released Flamer 2182 | -10/Subcaves | Learned location of Zion (-7) 2182 | -10/Subcaves | Met a Zionite searching for "candidates" 2478 | -10/Subcaves | Identified exit to Recycling 2618 | -10/Subcaves | Disturbed a concealed Subdweller 3654 | -10/Subcaves | Shifting Twisted Machinery released Sub. Laser 3702 | -10/Subcaves | Shifting Twisted Machinery released Sub. Power Source 3971 | -10/Subcaves | Shifting Twisted Machinery released Flamer 3984 | -10/Subcaves | Shifting Twisted Machinery released Sub. Laser 4321 | -10/Subcaves | A Subdweller sparked back to life 4321 | -10/Subcaves | A Subdweller sparked back to life 4321 | -10/Subcaves | A Subdweller sparked back to life 4326 | -10/Subcaves | Core integrity fell below 50% 4328 | -10/Subcaves | Core integrity fell below 20% 4360 | -10/Subcaves | Lost 5 parts (1p1n3w) 4645 | -10/Subcaves | Visited Clippyterm 4655 | -10/Subcaves | Learned location of Section 7 (-3) 4655 | -10/Subcaves | Learned 40 Factory zone layouts 4687 | -10/Subcaves | Destroyed by F0-2ZU(R) with Subdweller Machine Gun Last Messages --------------- still manages to suggest unhelpful sample queries and responses. --DD-NU8 >>Record "World Domination" It looks like you're trying to take over the world, would you like help? World map updated: -3/Section 7. >>Record "Cartography" It looks like you want to prove yourself as a member of the Cartography Club, why not cheat using advanced predictive AI techniques? Data stored: Factory zone layouts (x40). >>Record "Permadeath" It looks like you're defining "roguelike," quit while you're ahead. Please. >>Record "LU-1G1" It looks like you're researching the legendary digger of dangerously deep tunnels, unfortunately it seems not even members of the Boring Crew know what became of that one. 04686_ Lgt. Treads destroyed. Map ----- +----------------------------------------------------+ | ????????????????????####" "#?????##??# ##?? | | ????????????????????#""#" #???????? #??? | | ?????????????????????# ##???????? ??? | | ?????????????????????# ##?????????? ??? | | ????????????????????## ##??????????? ??? | | ????????????????????# ##???????????? ??? | | ????????????????????## #??????????? ? ??? | | ???????????????????## ##??????????????????? | | ???????????????????# #??????????????????? | | ??????????????????## ##?????????????????? | | ????????????????### ##????????????????? | | ???????????????## #????????????????? | | ???????????????# #????????????????? | | ???????????????# ## #???????????????? | | ???????????###### #? #?????????????? | | ???????????#"""## #? ##?????????????? | | ???????????#"" ## #?? #??????????????? | | ???????????#"X # ##?###??????????????? | | ???????????#"" ## ## ##?????????????????? | | ???????????#"""### ## #?????????????????? | | ???????????##### #?????????????????? | | ???????????????# #?????????????????? | | ???????????????## ###?????????????????? | | ????????????????## ##???????????????????? | | ?????????????????# #????????????????????? | | ?????????????????##@ #????????????????????? | | ??????????????????# #???????????????????? | | ??????????????????##RR##??????????????###### | | ???????????????????? #??????????????## | | ???????????????????? ??????????????# | | ???????????????????? #?????????????# ## | | ???????????????????? #?????????????# # | | ???????????????????? ##?????????????## | | ???????????????????? ##???????????????# | | ????????????????????#?????????????????# # | | ??????????????????????????????????????# ### | | ??????????????????????????????????????# ## | | ????????????????????????#?????????????# | | ??????????????????????????????????????## | | ??????????????????????????#???????#??#?## # | | ??????????????????????#??????????#??????# # | | ????????????????????????????????????#???# | | ???????????????????????#???????????#?#### | | ????????????????????????????????#????# | | ?????????????????????????????????????# | | ??????????????????? ???#?????#?????#?## | | ??????????????????????????????#???????### | | ??????????????????????????#?????#???????#### | | ???????????????????????????#?????#?????????? | | ????????????????????????????########??#?#??? | +----------------------------------------------------+ Best States ------------- Heat Dissipation 35 Energy Generation 15 Energy Capacity 250 Matter Stores 300 Matter Capacity 300 Sight Range 16 Terrain Scan Range 16 Terrain Scan Density 10 Armor Coverage 100 Evasion (%) 50 Recoil Reduction 2 Item Schematics ----------------- None Robot Schematics ------------------ None Fabricated ------------ Nothing Repaired ---------- Nothing Alien Tech Used ----------------- None Achievements -------------- None Challenges ------------ None Game ------ Seed LayeredFlightCycler Manual? 0 Play Time 00:17:22 Cumulative 445.2 hours Start 2024.11.09 @ 19:13:32 End 2024.11.09 @ 19:30:39 Sessions 1 Manual Loads 0 Difficulty Rogue Special Mode None Game No. 300 Rogue 295 Adventurer 5 Explorer 0 Win Type - Total 11 Types 5/0/5/0/0/0/1/0/0 Lore% 79 Gallery% 89 Achievement% 75 Wizard Run 0 Options --------- Layout 2 ASCII 0 Keyboard 0 Movement Mouse Keybinds 0 Fullscreen 2 Font 24/Smallcaps Map View 50x44 Zoom Use 0% Tactical HUD 1 Map Filters NONE Filters NONE Steam 1 RUN: 14a529bc-4395-4c63-85b8-c5c196fa95cc